Cogmind - Beta 13 @@@ ROGUE MODE // 2024.04.03 @ 13:44:06 Player: Nathan Result: Destroyed by S-10 Pest with Light Assault Rifle Performance ------------- Evolutions (2) 1000 Regions Visited (3) 600 Robots Destroyed (13) 65 Value Destroyed (360) 360 Prototype IDs (1) 20 Alien Tech Used (0) 0 Bonus (0) 0 TOTAL SCORE: 2045 Bonus ------- None Cogmind --------- Core Integrity 0/550 Matter 29/300 Energy 171/300 System Corruption 0% Temperature Cool (0) Movement Core (50) Location -8/Materials Parts ------- > --- POWER (1) -------- (None) > --- PROPULSION (4) --- Improved Cesium-ion Thruster > --- UTILITY (4) ------ Large Battery > --- WEAPON (2) ------- (None) > --- INVENTORY (5) ---- Improved Cesium-ion Thruster Improved Cesium-ion Thruster Advanced Weight Redist. System Recoil Stabilizer Hacking Suite Peak State ------------ > --- POWER ------------ Light Ion Engine > --- PROPULSION ------- Improved Cesium-ion Thruster Improved Cesium-ion Thruster Improved Cesium-ion Thruster Improved Cesium-ion Thruster > --- UTILITY ---------- Small Storage Unit Recoil Stabilizer Hardened Medium Armor Plating Hacking Suite > --- WEAPON ----------- Beam Rifle Autogun > --- INVENTORY -------- Large Battery Large Battery Weight Redist. System Advanced Weight Redist. System Seismic Detector Hacking Suite [Rating: 36] Favorites ----------- Power Light Ion Engine Engine Light Ion Engine Propulsion Aluminum Leg Leg Aluminum Leg Hover Unit Hover Unit Flight Unit Improved Cesium-ion Thruster Utility Small Storage Unit Device Seismic Detector Storage Small Storage Unit Processor Signal Interpreter Hackware Hacking Suite Protection Propulsion Shielding Weapon EM Pulse Gun Energy Gun EM Pulse Gun Ballistic Gun Light Assault Rifle Launcher Grenade Launcher Build | -11 -10 -9 -8 ------- Run | Yrd Mat Mat Mat Slots Evolved 4 | . . 2 2 Power . | . . . . Propulsion 2 | . . 1 1 Utility 2 | . . 1 1 Weapon . | . . . . Parts Attached 43 | 6 11 10 16 Power 5 | 1 1 2 1 Engine 5 | 1 1 2 1 Core . | . . . . Reactor . | . . . . Propulsion 15 | 2 4 2 7 Treads . | . . . . Leg 6 | 2 2 2 . Wheel . | . . . . Hover 2 | . 2 . . Flight 7 | . . . 7 Utility 10 | 1 3 1 5 Device 2 | . . . 2 Storage 4 | 1 1 . 2 Processor 1 | . 1 . . Hackware 1 | . 1 . . Protection 2 | . . 1 1 Artifact . | . . . . Weapon 13 | 2 3 5 3 Energy Gun 5 | 1 2 1 1 Energy Cannon . | . . . . Ballistic Gun 6 | 1 1 2 2 Ballistic Cannon . | . . . . Launcher 2 | . . 2 . Special Weapon . | . . . . Impact Weapon . | . . . . Slashing Weapon . | . . . . Piercing Weapon . | . . . . Special Melee Weapon . | . . . . Unidentified Prototypes 1 | . . . 1 Parts Lost 20 | . 1 11 8 Power 4 | . . 3 1 Propulsion 8 | . 1 4 3 Utility 4 | . . 1 3 Weapon 4 | . . 3 1 Highest Loss Streak 10 | . 1 10 5 To Critical Strikes . | . . . . Average Slot Usage (%) 84 | . 98 84 70 Engine 9 | . 14 8 5 Leg 15 | . 17 27 . Hover 3 | . 9 . . Flight 10 | . . . 31 Storage 12 | . 13 11 12 Hackware 10 | . 13 11 7 Protection 4 | . . 7 5 Energy Gun 9 | . 17 5 3 Ballistic Gun 8 | . 10 10 3 Naked Turns . | . . . . Heaviest Build 23 | 10 11 15 23 Greatest Support 30 | 20 20 30 24 Greatest Overweight (x) 4 | 2 1 1 4 Average Overweight (x) . | . . . . Largest Inventory Capacity 8 | 8 8 8 8 Average Capacity 7 | 7 7 8 7 Most Carried 8 | 6 8 8 8 Average Carried 6 | 5 7 5 5 Final Capacity 8 | 8 8 8 5 Final Carried 6 | 6 6 5 5 Class Distribution -------------------- 81% | Mutant 18% | Sprinter Dominant Class ---------------- Mutant | -10/Materials Mutant | -9/Materials Sprinter | -8/Materials Resources | -11 -10 -9 -8 ----------- Run | Yrd Mat Mat Mat Matter Collected 448 | 181 210 57 . Remotely . | . . . . Salvage Created 441 | . 261 135 45 Parts 26 | . 15 10 1 Haulers Intercepted 1 | . 1 . . Recyclers Shooed 3 | . 3 . . Parts Field Recycled . | . . . . Retrieved Matter . | . . . . Parts Self-Destructed . | . . . . Prevented . | . . . . Kills | -11 -10 -9 -8 ------- Run | Yrd Mat Mat Mat Combat Hostiles Destroyed 10 | . 4 5 1 Guns 7 | . 3 3 1 AOE 3 | . 1 2 . Classes Destroyed 6 | . 4 2 . Builder 1 | . 1 . . Hauler 1 | . 1 . . Operator 1 | . 1 . . Swarmer 3 | . . 3 . Grunt 6 | . 4 1 1 Duelist 1 | . . 1 . Best Kill Streak 3 | . 2 3 1 Combat Bots Only 3 | . 2 3 1 Max Kills in Single Turn 3 | . 1 3 1 Gunslinging . | . . . . Exploded 2 | . 1 2 . Melee . | . . . . Uniques/NPCs Destroyed . | . . . . Combat | -11 -10 -9 -8 -------- Run | Yrd Mat Mat Mat Hostile Shots Fired 279 | . 27 108 144 Missed 83 | . 8 32 43 Damage Taken 2600 | . 368 957 1275 Core 985 | . 195 236 554 Absorbed by Shields . | . . . . Redirected to Shielding 50 | . . 50 . Core Remaining (%) 54 | 100 22 41 . Volleys Fired 74 | . 37 20 17 Largest 2 | . 2 2 2 Hottest 80 | . 80 63 79 Shots Fired 131 | . 70 34 27 Gun 130 | . 70 33 27 Cannon . | . . . . Launcher 1 | . . 1 . Special . | . . . . Kinetic 70 | . 26 27 17 Thermal 21 | . 11 . 10 Explosive 1 | . . 1 . Electromagnetic 39 | . 33 6 . Robot Hit Streak 8 | . 6 8 8 Robot Miss Streak 4 | . 2 4 3 Penetration Max . | . . . . Secondary Targets . | . . . . Shots Hit Robots 82 | . 46 19 17 Core Hits 29 | . 15 7 7 Critical Kills . | . . . . Critical Parts Destroyed . | . . . . Critical Strikes 1 | . . . 1 Burn 1 | . . . 1 Melee Attacks . | . . . . Impact . | . . . . Slashing . | . . . . Piercing . | . . . . Sneak Attacks . | . . . . Combat Hostiles . | . . . . Follow-up Attacks . | . . . . Damage Inflicted 1381 | . 786 387 208 Guns 1043 | . 516 319 208 Cannons . | . . . . Explosions 338 | . 270 68 . Melee . | . . . . Ramming . | . . . . Kinetic 505 | . 141 273 91 Thermal 466 | . 349 . 117 Explosive 68 | . . 68 . Electromagnetic 342 | . 296 46 . Impact . | . . . . Slashing . | . . . . Piercing . | . . . . Highest Corruption . | . . . . Average Corruption . | . . . . Corruption Purged . | . . . . Corruption Blocked . | . . . . Overload Shots . | . . . . Overflow Damage 6 | . 6 . . Projectiles . | . . . . Explosions 6 | . 6 . . Melee . | . . . . Knockbacks . | . . . . Impact . | . . . . Kinetic . | . . . . Secondary . | . . . . Self-Inflicted Damage 145 | . 119 26 . Shots 3 | . 2 1 . Rammed . | . . . . Targets Rammed . | . . . . Kicked . | . . . . Crushed . | . . . . Highest Temperature 539 | . 308 16 539 Average Temperature 137 | . 100 8 190 Received Heat Transfer 630 | . 135 180 315 Effects 18 | . 3 . 15 Shutdowns 3 | . . . 3 Energy Bleed 2 | . 1 . 1 Interference 2 | . 2 . . Matter Decay 1 | . . . 1 Short Circuit 2 | . . . 2 Damage (minor) 1 | . . . 1 Damage (major) 6 | . . . 6 Damage (core) 1 | . . . 1 Siege Activations . | . . . . Robots Corrupted . | . . . . Combat Hostiles . | . . . . Parts Fried 1 | . 1 . . Impact Corruptions . | . . . . Robots Melted . | . . . . Combat Hostiles . | . . . . Parts Melted . | . . . . Heat Transferred 845 | . 475 . 370 Parts Sabotaged . | . . . . Parts Stolen . | . . . . Parts Stripped . | . . . . Power Chain Reactions 3 | . 3 . . Alert | -11 -10 -9 -8 ------- Run | Yrd Mat Mat Mat Peak Influence 484 | . 274 262 484 Initial 115 | . . 115 100 Average 172 | . 152 181 222 Maximum Alert Level 2 | . 1 1 2 Low Security (%) 60 | 100 58 51 61 Level 1 34 | . 41 48 21 Level 2 5 | . . . 16 Level 3 . | . . . . Level 4 . | . . . . Level 5 . | . . . . High Security . | . . . . Max Security . | . . . . Squads Dispatched 5 | . 1 1 3 Investigation 1 | . 1 . . Extermination . | . . . . Reinforcement 4 | . . 1 3 Assault . | . . . . Garrison . | . . . . Intercept . | . . . . Searches Triggered . | . . . . Construction Impeded . | . . . . Haulers Reinforced . | . . . . Active Scanning Responses . | . . . . Cargo Convoy Interrupts . | . . . . Stealth | -11 -10 -9 -8 --------- Run | Yrd Mat Mat Mat Distress Signals 3 | . . 3 . Communications Jammed . | . . . . Distress Signals . | . . . . Times Spotted 57 | . 9 18 30 Peak Tracking Total 10 | . 3 10 10 Tactical Retreats 8 | . 1 1 6 Traps | -11 -10 -9 -8 ------- Run | Yrd Mat Mat Mat Traps Triggered 1 | . 1 . . Indirectly . | . . . . Trap Hack Attempts . | . . . . Triggered . | . . . . Disarmed 6 | . . . 6 Reprogrammed . | . . . . Reused . | . . . . Traps Extracted . | . . . . Installed . | . . . . Triggered . | . . . . Machines | -11 -10 -9 -8 ---------- Run | Yrd Mat Mat Mat Machines Disabled 3 | . 3 . . Max in Single Turn 1 | . 1 . . Machines Repaired . | . . . . Machines Dismantled . | . . . . Machines Sabotaged . | . . . . Overloaded Fab Kills . | . . . . Hacking | -11 -10 -9 -8 --------- Run | Yrd Mat Mat Mat Machines Accessed 4 | . . 1 3 Terminals 3 | . . 1 2 Fabricators . | . . . . Repair Stations . | . . . . Recycling Units 1 | . . . 1 Scanalyzers . | . . . . Garrison Access . | . . . . Total Hacks 14 | . . 4 10 Successful 9 | . . 2 7 Failed 5 | . . 2 3 Catastrophic . | . . . . Database Lockouts . | . . . . Manual . | . . . . Terminals 8 | . . 4 4 Fabricators . | . . . . Repair Stations . | . . . . Recycling Units 6 | . . . 6 Scanalyzers . | . . . . Garrison Access . | . . . . Terminal Hacks 6 | . . 2 4 Record 2 | . . 1 1 Emergency Access Points 1 | . . 1 . Alert Level 1 | . . . 1 Disarm Traps 1 | . . . 1 Hauler Manifests 1 | . . . 1 Fabricator Hacks . | . . . . Repair Station Hacks . | . . . . Recycling Unit Hacks 3 | . . . 3 Recycle Component 1 | . . . 1 Report Inventory 1 | . . . 1 Retrieve Matter 1 | . . . 1 Scanalyzer . | . . . . Garrison Access Hacks . | . . . . Unauthorized Hacks . | . . . . Terminals . | . . . . Fabricators . | . . . . Repair Stations . | . . . . Recycling Units . | . . . . Scanalyzers . | . . . . Garrison Access . | . . . . Data Cores Recovered 1 | . 1 . . Used . | . . . . Hacking Detections 3 | . . 1 2 Full Trace Events 1 | . . 1 . Feedback Events . | . . . . Feedback Blocked . | . . . . Robot Schematics Acquired . | . . . . Robots Built . | . . . . Authchips . | . . . . Time . | . . . . Total Robot Build Rating . | . . . . Part Schematics Acquired . | . . . . Parts Built . | . . . . Authchips . | . . . . Time . | . . . . Total Part Build Rating . | . . . . Parts Repaired . | . . . . Time . | . . . . Parts Recycled 1 | . . . 1 Recycled Matter . | . . . . Retrieved Matter . | . . . . Retrieved Components . | . . . . Parts Scanalyzed . | . . . . Part Schematics Acquired . | . . . . Parts Damaged . | . . . . Bothacking | -11 -10 -9 -8 ------------ Run | Yrd Mat Mat Mat Used RIF Installer . | . . . . Robots Hacked . | . . . . Non-combat . | . . . . Combat . | . . . . Robot Hacks Applied . | . . . . Relay Couplers Released . | . . . . Fabnet Peak Effective % . | . . . . Robots Rewired . | . . . . Allies Hacked . | . . . . Hacks Repelled . | . . . . Allies | -11 -10 -9 -8 -------- Run | Yrd Mat Mat Mat Total Allies . | . . . . Largest Group . | . . . . Highest-Rated Group . | . . . . Highest-Rated Ally . | . . . . Total Orders . | . . . . Ally Attacks . | . . . . Total Damage . | . . . . Kills . | . . . . Allies Corrupted . | . . . . Allies Melted . | . . . . Intel | -11 -10 -9 -8 ------- Run | Yrd Mat Mat Mat Robot Analysis Total . | . . . . Derelict Logs Recovered . | . . . . Drone Launches . | . . . . Drone Recoveries . | . . . . Exploration | -11 -10 -9 -8 ------------- Run | Yrd Mat Mat Mat Turns Passed 991 | 65 330 294 302 Spaces Moved 922 | 43 191 186 502 Core 74 | 10 . 16 48 Treads . | . . . . Legs 328 | 33 125 170 . Wheels . | . . . . Hover 66 | . 66 . . Flight 454 | . . . 454 Fastest Speed 26 | 50 56 100 26 Average Speed 72 | 113 100 121 40 Slowest Speed 250 | 150 120 190 250 Overloaded Moves . | . . . . Propulsion Burnouts . | . . . . Robots Hopped 13 | . . . 13 Cave-ins Triggered . | . . . . Exploration Rate (%) 29 | 3 38 21 54 Regions Visited 3 Branch Regions . Pre-discovered Areas . | . . . . Known Exits Taken 1 | . 1 . . Unknown Exits Taken 2 | 1 . 1 . Scrap Searched . | . . . . Spaces Dug . | . . . . Terrain Destroyed 43 | . 36 7 . Melee . | . . . . Projectile . | . . . . AOE 43 | . 36 7 . Terrain Rammed . | . . . . Walls Destroyed . | . . . . Machines Disabled . | . . . . Actions | -11 -10 -9 -8 --------- Run | Yrd Mat Mat Mat Total 1112 | 56 265 224 567 Wait 30 | 2 . 2 26 Move 894 | 42 190 185 477 Hop 12 | . . . 12 Pick Up 37 | 6 15 5 11 Fast Attach 12 | 6 2 1 3 Attach 19 | . 2 7 10 Detach 3 | . . 1 2 Swap 12 | . 7 2 3 Drop 19 | . 12 1 6 Fire 74 | . 37 20 17 Melee . | . . . . Ram . | . . . . Kick . | . . . . Crush . | . . . . Escape Stasis . | . . . . Rewire . | . . . . Trap . | . . . . Miscellaneous . | . . . . Route ------- -11/Scrapyard -10/Materials -9/Materials -8/Materials History --------- Turn | Location | Event 14 | -11/Scrapyard | Discovered new exit (range 15) 66 | -11/Scrapyard | Entered Materials 198 | -10/Materials | Core integrity fell below 50% 309 | -10/Materials | Build established: Mutant 320 | -10/Materials | Discovered new exit (range 16) 361 | -10/Materials | Identified exit to Materials 396 | -10/Materials | Entered another Materials area 396 | -9/Materials | Evolved 2 slots: Propulsion x1, Utility x1 681 | -9/Materials | Core integrity fell below 50% 681 | -9/Materials | Discovered new exit (range 5) 690 | -9/Materials | Entered another Materials area 690 | -8/Materials | Evolved 2 slots: Propulsion x1, Utility x1 706 | -8/Materials | Lost 10 parts (2p4n1u3w) 954 | -8/Materials | Core integrity fell below 50% 979 | -8/Materials | Core integrity fell below 20% 992 | -8/Materials | Destroyed by S-10 Pest with Light Assault Rifle Last Messages --------------- Imp. Signal Interpreter (63%) >>Recycle(Weight Redist. System) Accepting Weight Redist. System... O-16 Technician: "IFF HANDSHAKE FAILED. SECURING TERMINAL." ALERT: Hostiles spotted, dispatching reinforcements to Terminal M008. Hacking Suite destroyed. Imp. Cesium-ion Thruster destroyed. K-01 Serf cleans the Nuclear Reactor. Imp. Cesium-ion Thruster destroyed. Nuclear Reactor explodes. S-10 Pest destroyed. K-01 Serf collects debris. Sml. Storage Unit destroyed. K-01 Serf collects debris. R-06 Scavenger collects Flight Unit. K-01 Serf collects debris. The unstable cave ceiling collapses. K-01 Serf cleans the Nuclear Reactor. Map ----- +----------------------------------------------------+ | ## ###?# #??????????????????????? | | "T" ## ""#?# #??????????????????????? | | """ # T"#?# #??????????????????????? | | # ""#?# #??????????????????????? | | ##+### #???# #??????????????????????? | | # = #???# #??????????????????????? | | = %= #???# #????##????????????????? | | # ^ % ##+##### #??? ????????????????? | | ###### * ! # #???""" ?#?????????????? | | ###+ # """"""" # #?? """ #?????????????? | | """ # ?# """"""" # #? """ ?+?????????????? | | """ # ## """"""" + # #?????????????? | | """ # ## """"""" #s # """ ???????????????? | | """ # !! ?# """"""" # + """ ???????????????? | | " # !! ## ? # # """ ???????????????? | | # ## ? ! # #? #?????????????? | | % ! # #??######### #???######?????????????? | | +###########??????????# #????######????????????? | | [ #?????????????????# #??! ! #????????????? | | #?????????????????# # #????????????? | | #?????????????????# + #????????????? | | T #?????????????????# # #????????????? | | #?????????????????# #??] ] #????????????? | | #?????????????????# #????######????????????? | | #?????????????????# #??????????????????????? | | ##?????????????????# @#??????????????????????? | | #??????????????????# #??????????????????????? | | #??????????????????+ +??????????????????????? | | #??????????????????# #?????????????????? ? | | #??????????????????# #?????????????????? ? | | #??????????????????# #????##???????????? #? | | #??????????????????# ???? ???????????# #? | | #??????????????????# ???? ???????????# #? | | ##########?????????# ???? #??????????# #? | | # #?????????# #????# #??????????# #? | | # """#?????????# #????# #?########?# #? | | # R"#?????????# #????+ #?# =!!!!#?# #? | | # """#?????????# #????# #?# !!!!#?# #? | | # #?????????# #????# #?# #?# #? | | # #?????????# #????# #?# ##?# #? | | # """ #?????????# #????# #?# #### ## | | # | """ #?????????# ######+### | | # """ #??######## # + | | + #? """ # # # | | # """ # """"" # # # #####+### | | # """ # """"" # # ## ## #? | | # """ # """"" # # ## ## #? | | # # """ # # ## ## #? | | / """ # + + ## ## """" #? | | #### """ # # # ## ## """" #? | +----------------------------------------------------+ Best States ------------- Heat Dissipation 31 Energy Generation 10 Energy Capacity 325 Matter Stores 300 Matter Capacity 300 Sight Range 16 Terrain Scan Density 10 Armor Coverage 225 Propulsion Shielding 33 Evasion (%) 64 Recoil Reduction 4 Offensive Hacking 10 Item Schematics ----------------- None Robot Schematics ------------------ None Fabricated ------------ Nothing Alien Tech Used ----------------- None Achievements -------------- None Challenges ------------ None Game ------ Seed MultitargetingTacticalClaws Manual? 0 Play Time 00:19:47 Cumulative 4.6 hours Start 2024.04.03 @ 13:24:20 End 2024.04.03 @ 13:44:06 Sessions 1 Manual Loads 0 Difficulty Rogue Special Mode None Game No. 10 Rogue 4 Adventurer 6 Explorer 0 Win Type - Total 0 Types 0/0/0/0/0/0/0/0/0 Lore% 11 Gallery% 10 Achievement% 8 Wizard Run 0 Options --------- Layout 1 ASCII 0 Keyboard 0 Movement Mouse Keybinds 0 Fullscreen 1 Font 24/Smallcaps Map View 50x35 Zoom Use 0% Tactical HUD 0 Map Filters NONE Filters NONE Steam 1 RUN: 8bde047b-55dc-4684-88ae-f6f55fadc1c1